[Event "Reykjavik Chess Congress 2018"]
[Site "Reykjavik"]
[Date "2018.01.18"]
[Round "3"]
[White "Davidsson, Oskar Vikingur"]
[Black "Loftsson, Hrafn"]
[Result "0-1"]
[ECO "B22"]
[WhiteElo "1854"]
[BlackElo "2163"]
[Annotator "RC"]
[PlyCount "129"]
[EventDate "2018.??.??"]
[EventType "swiss"]
[EventCountry "ISL"]
[SourceTitle "playchess.com"]
[Source "ChessBase"]
[SourceQuality "1"]
[TimeControl "40/5400+30:900+30"]

1. e4 {[%emt 0:00:38]} c5 {[%emt 0:00:08]} 2. c3 {[%emt 0:00:29]} Nf6 {[%emt 0:00:39]} 3. e5 {[%emt 0:00:21]} Nd5 {[%emt 0:00:08]} 4. d4 {[%emt 0:00:24]} cxd4 {[%emt 0:00:26]} 5. Nf3 {[%emt 0:00:09]} Nc6 {[%emt 0:01:29]} 6. cxd4 {[%emt 0:00:31]} d6 {[%emt 0:01:59]} 7. Bc4 {[%emt 0:01:18]} e6 {[%emt 0:00:20]} 8. O-O {[%emt 0:00:21]} Be7 {[%emt 0:00:44]} 9. Qe2 {[%emt 0:00:41]} O-O {[%emt 0:00:33]} 10. Qe4 {[%emt 0:00:19]} Bd7 {[%emt 0:08:48]} 11. Bxd5 {[%emt 0:03:33]} exd5 {[%emt 0:00:06]} 12. Qxd5 {[%emt 0:00:09]} Be6 {[%emt 0:12:30]} 13. Qe4 {[%emt 0:08:29]} dxe5 {[%emt 0:02:12]} 14. dxe5 {[%emt 0:00:38]} Qb6 {[%emt 0:19:08]} 15. Nc3 {[%emt 0:04:35]} Rfd8 {[%emt 0:01:32]} 16. Qe2 {[%emt 0:03:58]} Bf5 {[%emt 0:11:53]} 17. Be3 {[%emt 0:03:12]} Qa5 {[%emt 0:01:29]} 18. Rfd1 {[%emt 0:02:18]} Nxe5 {[%emt 0:06:26]} 19. Nxe5 {[%emt 0:00:37]} Qxe5 {[%emt 0:00:02]} 20. Rxd8+ {[%emt 0:01:27]} Rxd8 {[%emt 0:02:15]} 21. Bxa7 {[%emt 0:08:48]} Qxe2 {[%emt 0:01:38]} 22. Nxe2 {[%emt 0:00:56]} Bf6 {[%emt 0:07:41]} 23. Nc3 {[%emt 0:05:15]} Rd2 {[%emt 0:01:28]} 24. Nd1 {[%emt 0:00:27]} Bc2 {[%emt 0:06:13]} 25. Nc3 {[%emt 0:01:19]} Bd3 {[%emt 0:04:24]} 26. Re1 {[%emt 0:05:49]} h6 {[%emt 0:02:59]} 27. Nd1 {[%emt 0:01:16]} Be2 {[%emt 0:01:29]} 28. Nc3 {[%emt 0:00:53]} Bd3 {[%emt 0:01:32]} 29. Nd1 {[%emt 0:00:11]} Bc4 {[%emt 0:02:06]} 30. Be3 {[%emt 0:02:25]} Rc2 {[%emt 0:00:20]} 31. a3 {[%emt 0:01:23]} b5 {[%emt 0:02:21]} 32. h3 {[%emt 0:00:52]} g5 {[%emt 0:00:47]} 33. h4 {[%emt 0:04:19]} Kg7 {[%emt 0:00:23]} 34. hxg5 {[%emt 0:00:08]} hxg5 {[%emt 0:00:01]} 35. Kh2 {[%emt 0:02:59]} Kg6 {[%emt 0:00:08]} 36. Kg1 {[%emt 0:00:12]} Bg7 {[%emt 0:00:45]} 37. g3 {[%emt 0:02:31]} f5 {[%emt 0:00:20]} 38. Bc5 {[%emt 0:04:46]} f4 {[%emt 0:01:17]} 39. gxf4 {[%emt 0:03:11]} gxf4 {[%emt 0:00:00]} 40. Bb4 {[%emt 0:00:00]} Kf5 {[%emt 0:01:10]} 41. Nc3 {[%emt 0:02:32]} Rxb2 {[%emt 0:02:28]} 42. Ne4 {[%emt 0:00:27]} Kg4 {[%emt 0:02:17]} 43. Bc5 {[%emt 0:06:18]} Re2 {[%emt 0:04:52]} 44. Rxe2 {[%emt 0:01:48]} Bxe2 {[%emt 0:00:02]} 45. Bb4 {[%emt 0:01:33]} Bd3 {[%emt 0:01:14]} 46. Nd2 {[%emt 0:04:32]} Bd4 {[%emt 0:01:46]} 47. Nb3 {[%emt 0:02:29]} Be5 {[%emt 0:01:01]} 48. Nd2 {[%emt 0:02:13]} Bb2 {[%emt 0:01:29]} 49. Nb3 {[%emt 0:04:10]} Kf3 {[%emt 0:01:10]} 50. Nc5 {[%emt 0:04:32]} Bc2 {[%emt 0:00:34]} 51. Kf1 {[%emt 0:00:14]} Bd4 {[%emt 0:00:46]} 52. Ne6 {[%emt 0:00:19]} Bd3+ {[%emt 0:00:16]} 53. Ke1 {[%emt 0:00:36]} Bxf2+ {[%emt 0:00:31]} 54. Kd1 {[%emt 0:00:15]} Bc4 {[%emt 0:01:50]} 55. Nxf4 {[%emt 0:00:21]} Kxf4 {[%emt 0:00:06]} 56. Kc2 {[%emt 0:00:02]} Bd4 {[%emt 0:01:03]} 57. Bc3 {[%emt 0:01:54]} Bc5 {[%emt 0:00:21]} 58. a4 {[%emt 0:00:12]} b4 {[%emt 0:00:22]} 59. Bd2+ {[%emt 0:00:06]} Ke4 {[%emt 0:00:09]} 60. a5 {[%emt 0:00:10]} Kd5 {[%emt 0:00:29]} 61. Bf4 {[%emt 0:00:45]} Kc6 {[%emt 0:00:16]} 62. Be5 {[%emt 0:00:26]} Bd6 {[%emt 0:01:55]} 63. Bd4 {[%emt 0:00:25]} Bc7 {[%emt 0:00:14]} 64. a6 {[%emt 0:00:21]} Bxa6 {[%emt 0:00:16]} 65. Bc3 0-1

[Event "Reykjavik Chess Congress 2018"]
[Site "Reykjavik"]
[Date "2018.01.17"]
[Round "3"]
[White "Ulfljotsson, Jon"]
[Black "Halldorsson, Bragi"]
[Result "0-1"]
[ECO "A48"]
[WhiteElo "1687"]
[BlackElo "2082"]
[Annotator "NA RC"]
[PlyCount "87"]
[EventDate "2018.??.??"]
[EventType "swiss"]
[EventCountry "ISL"]
[SourceTitle "playchess.com"]
[Source "ChessBase"]
[SourceQuality "1"]
[TimeControl "40/5400+30:900+30"]

{[%evp 11,77,10,28,25,32,32767,56,11,33,21,45,39,43,58,59,44,64,64,75,55,56,37,100,18,43,23,16,37,32767,32767,32767,9,44,32767,32767,32767,26,25,88,41,62,32767,32767,32767,8,0,32767,-40,0,-67,-38,-69,-56,-80,-46,-90,-103,-135,-157,-157,-116,-115,-44,-118,-133,-163,-177,-200]} 1. d4 {[%emt 0:00:00]} Nf6 {[%emt 0:03:30]} 2. Nf3 {[%emt 0:00:07]} g6 {[%emt 0:01:19]} 3. e3 {[%emt 0:02:06]} Bg7 {[%emt 0:00:24]} 4. Be2 {[%emt 0:00:43]} O-O {[%emt 0:00:21]} 5. O-O {[%emt 0:01:04]} d6 {[%emt 0:00:46]} 6. c4 {[%emt 0:02:01]} Nbd7 {[%emt 0:00:51]} 7. Qc2 {[%emt 0:02:44]} c6 {[%emt 0:00:35]} 8. Nc3 {[%emt 0:02:02]} Re8 {[%emt 0:00:51] E61: King's Indian: Early deviations for White, including Smyslov System} (8... e5 9. Rd1 Qc7 10. b3 Re8 11. Ba3 exd4 12. Nxd4 Nc5 13. Bf3 Bg4 14. Rac1 Rad8 15. h3 Bxf3 16. Nxf3 a5 17. Bxc5 dxc5 18. Rxd8 Rxd8 {1-0 (72) Ernst,S (2535)-Van Foreest,J (2578) Utrecht 2016}) 9. b3 {[%emt 0:07:56]} a6 {[%emt 0:03:34]} 10. Bb2 {[%emt 0:04:41]} Nf8 $146 {[%emt 0:10:46]} ({Predecessor:} 10... e5 11. Rfd1 Qe7 12. a4 e4 13. Nd2 Nf8 14. a5 h5 15. b4 {1-0 (43) Terekhin,A (2323)-Karpenko,A (2173) Perm 2007}) 11. Rfd1 {[%emt 0:08:06]} Qc7 {[%emt 0:02:16]} 12. Rac1 {[%emt 0:05:40]} Bd7 {[%emt 0:01:03]} 13. d5 {[%emt 0:04:40]} c5 {[%emt 0:05:33]} 14. h3 {[%emt 0:04:21]} Rab8 {[%emt 0:03:55]} 15. Bd3 {[%emt 0:04:18]} b5 {[%emt 0:00:21]} 16. e4 {[%emt 0:06:11]} bxc4 {[%emt 0:01:48]} (16... Nh5 $14) 17. bxc4 {[%emt 0:00:46]} (17. Bxc4 $16 Bb5 18. Nxb5 axb5 19. Be2) 17... Rb6 {[%emt 0:02:12]} 18. Rb1 {[%emt 0:09:23]} Reb8 {[%emt 0:02:59]} 19. Ba1 {[%emt 0:01:52]} Nh5 {[%emt 0:01:02]} 20. Rxb6 {[%emt 0:02:16]} Rxb6 {[%emt 0:00:15]} 21. Ne2 {[%emt 0:03:49]} Rb4 {[%emt 0:06:10]} 22. Qd2 {[%emt 0:11:07]} Ba4 {[%emt 0:00:42]} 23. Rc1 {[%emt 0:01:39]} Bxa1 {[%emt 0:03:34]} 24. Rxa1 {[%emt 0:00:08]} Qb8 {[%emt 0:08:30]} 25. Qe3 {[%emt 0:04:29]} f6 {[%emt 0:03:20]} 26. g4 {[%emt 0:03:52]} Ng7 {[%emt 0:00:11]} 27. Ng3 {[%emt 0:01:18]} Rb2 {[%emt 0:00:56]} 28. Kg2 {[%emt 0:01:06]} Qb4 {[%emt 0:00:49]} 29. g5 {[%emt 0:01:19]} Nd7 {[%emt 0:06:58]} 30. h4 {[%emt 0:02:01]} (30. gxf6 $11 exf6 31. Qc1) 30... Ne5 {[%emt 0:01:54]} 31. Nxe5 {[%emt 0:01:00]} fxe5 {[%emt 0:00:31]} 32. Be2 {[%emt 0:01:11]} Rc2 {[%emt 0:03:06]} 33. Qf3 {[%emt 0:01:08]} Bd7 {[%emt 0:00:27]} 34. Bd3 {[%emt 0:00:44] [#]} Rb2 $1 {[%emt 0:00:57]} 35. Qe3 {[%emt 0:00:34]} a5 {[%emt 0:01:51]} 36. Be2 {[%emt 0:00:41] [#]} Rc2 {[%emt 0:00:57]} ({Black should play} 36... a4 $1 $17) 37. Qb3 {[%emt 0:00:43] [#]} Rc3 $1 {[%emt 0:02:46]} 38. Qxb4 {[%emt 0:00:28]} cxb4 {[%emt 0:00:25]} ({Much less strong is} 38... axb4 39. f3 $17) 39. Kf1 $19 {[%emt 0:00:39]} Ne8 {[%emt 0:01:02]} 40. Ke1 {[%emt 0:00:00]} Nc7 {[%emt 0:00:08]} 41. Kd2 {[%emt 0:04:10]} Ra3 {[%emt 0:01:21]} 42. Kc2 {[%emt 0:01:36]} Na6 {[%emt 0:00:44]} 43. Kb2 {[%emt 0:01:19]} Nc5 {[%emt 0:00:28]} 44. Kc2 0-1

[Event "Reykjavik Chess Congress 2018"]
[Site "Reykjavik"]
[Date "2018.01.21"]
[Round "4"]
[White "Jensson, Einar Hjalti"]
[Black "Bjornsson, Eirikur K"]
[Result "1-0"]
[ECO "B06"]
[WhiteElo "2336"]
[BlackElo "1934"]
[Annotator "NA"]
[PlyCount "59"]
[EventDate "2018.??.??"]
[EventType "swiss"]
[EventCountry "ISL"]
[SourceTitle "playchess.com"]
[Source "ChessBase"]
[SourceQuality "1"]
[TimeControl "40/5400+30:900+30"]

1. e4 {[%emt 0:00:00]} g6 {[%emt 0:04:31]} 2. d4 {[%emt 0:00:27]} Bg7 {[%emt 0:00:09]} 3. Nc3 {[%emt 0:06:23]} d6 {[%emt 0:00:39]} 4. Be3 {[%emt 0:02:35]} a6 {[%emt 0:02:15]} 5. h4 {[%emt 0:01:07]} h5 {[%emt 0:02:42] B06: Moderne Verteidigung} 6. Qd2 {[%emt 0:03:43]} b5 {[%emt 0:03:11]} 7. Nh3 {[%emt 0:07:07]} Nd7 {[%emt 0:13:39]} 8. Ng5 {[%emt 0:04:17]} Bb7 {[%emt 0:14:16]} 9. a4 {[%emt 0:12:54]} b4 {[%emt 0:04:13]} 10. Nd1 {[%emt 0:00:44]} a5 {[%emt 0:03:36]} 11. c3 {[%emt 0:00:54]} bxc3 {[%emt 0:01:24]} 12. bxc3 {[%emt 0:00:07]} Ngf6 {[%emt 0:02:24]} 13. f3 {[%emt 0:00:48] [#]} O-O $146 {[%emt 0:07:10]} 14. Nb2 {[%emt 0:01:39]} e5 {[%emt 0:01:29]} (14... Qc8 $11 {keeps the balance.}) 15. d5 {[%emt 0:01:44]} Nc5 {[%emt 0:01:28]} 16. Ra3 {[%emt 0:04:31]} c6 {[%emt 0:04:55]} 17. dxc6 {[%emt 0:00:51]} Bxc6 {[%emt 0:00:42]} 18. Bb5 {[%emt 0:00:04]} Ncxe4 {[%emt 0:19:49]} 19. fxe4 {[%emt 0:00:35]} Nxe4 {[%emt 0:00:13]} 20. Nxe4 {[%emt 0:03:50]} Bxe4 {[%emt 0:00:37]} 21. c4 {[%emt 0:00:11]} f5 {[%emt 0:01:49]} 22. Bg5 {[%emt 0:00:50]} Qc7 {[%emt 0:01:08]} 23. Nd1 $18 {[%emt 0:01:37]} f4 {[%emt 0:02:31]} 24. Nc3 {[%emt 0:00:32]} Bb7 {[%emt 0:00:38]} 25. Nd5 {[%emt 0:00:18]} Qc5 {[%emt 0:00:12]} 26. Rb3 {[%emt 0:00:38]} e4 {[%emt 0:01:36]} 27. Nxf4 {[%emt 0:00:41]} Qf5 {[%emt 0:03:59]} 28. Qxd6 {[%emt 0:01:32]} Be5 {[%emt 0:01:23]} 29. Qxg6+ {[%emt 0:00:24]} Qxg6 {[%emt 0:00:58]} 30. Nxg6 {[%emt 0:00:02]} 1-0

[Event "Reykjavik Chess Congress 2018"]
[Site "Reykjavik"]
[Date "2018.01.21"]
[Round "4"]
[White "Olafsson, Thorvardur"]
[Black "Sigurdsson, Birkir Karl"]
[Result "1-0"]
[ECO "B42"]
[WhiteElo "2178"]
[BlackElo "1934"]
[Annotator "NA"]
[PlyCount "79"]
[EventDate "2018.??.??"]
[EventType "swiss"]
[EventCountry "ISL"]
[SourceTitle "playchess.com"]
[Source "ChessBase"]
[SourceQuality "1"]
[TimeControl "40/5400+30:900+30"]

1. e4 {[%emt 0:00:00]} c5 {[%emt 0:03:37]} 2. Nf3 {[%emt 0:00:00]} e6 {[%emt 0:01:35]} 3. d4 {[%emt 0:00:04]} cxd4 {[%emt 0:00:03]} 4. Nxd4 {[%emt 0:00:10]} a6 {[%emt 0:01:18]} 5. Bd3 {[%emt 0:03:33]} Qc7 {[%emt 0:04:40]} 6. O-O {[%emt 0:03:14] LiveBook: 968 Partien} Nf6 {[%emt 0:01:23]} 7. Qe2 {[%emt 0:01:40]} Bc5 {[%emt 0:02:41]} 8. Nf3 {[%emt 0:02:26] B42: Sicilian: Kan Variation: 5 Bd3} (8. Nb3 Be7 9. c4 d6 10. Nc3 Nbd7 11. f4 b6 12. Bd2 Bb7 13. Rae1 O-O 14. e5 dxe5 15. fxe5 Ne8 {1-0 (44) Akopian,V (2685)-Gajewski,G (2616) Moscow 2012}) 8... Nc6 {[%emt 0:02:20]} 9. e5 $146 {[%emt 0:10:53]} ({Find the theoretical novelty and annotate with similar games:} 9. c4 Ng4 10. g3 Nge5 11. Nxe5 Nxe5 12. Nc3 O-O 13. Bf4 d6 14. Rac1 Bd7 15. b3 Bc6 {½-½ (59) Hapala,E (2063)-Domarkaite,L (2154) Vienna 2014}) 9... Nd5 {[%emt 0:06:40]} 10. a3 {[%emt 0:04:11]} b5 {[%emt 0:03:23]} 11. c4 {[%emt 0:03:01]} bxc4 {[%emt 0:01:34]} 12. Bxc4 {[%emt 0:00:09]} O-O {[%emt 0:06:56]} 13. Bxd5 {[%emt 0:15:18]} exd5 {[%emt 0:02:25]} 14. Rd1 {[%emt 0:05:52]} Bb7 {[%emt 0:06:54]} 15. Nc3 {[%emt 0:03:46]} Ne7 {[%emt 0:06:36]} (15... Na5 $14) 16. Bg5 {[%emt 0:02:07]} Ng6 {[%emt 0:12:31]} 17. Nxd5 {[%emt 0:03:43]} Qb8 {[%emt 0:03:47]} 18. Rac1 {[%emt 0:03:41]} (18. b4 $18 Ba7 19. Ne7+ Nxe7 20. Bxe7 Bxf3 21. gxf3 (21. Qxf3 Re8 $16)) 18... Rc8 {[%emt 0:04:57]} 19. b4 {[%emt 0:06:14]} Ba7 {[%emt 0:00:52]} 20. Rxc8+ {[%emt 0:03:34]} Qxc8 {[%emt 0:01:39]} 21. h4 {[%emt 0:04:06]} Bxd5 {[%emt 0:06:17]} 22. Rxd5 {[%emt 0:00:14]} h6 {[%emt 0:00:50]} 23. h5 {[%emt 0:01:47]} hxg5 {[%emt 0:02:04]} 24. hxg6 {[%emt 0:00:25]} fxg6 {[%emt 0:00:28]} 25. e6 {[%emt 0:05:29]} dxe6 {[%emt 0:01:30]} 26. Rxg5 {[%emt 0:00:43]} Qc1+ {[%emt 0:01:16]} 27. Kh2 {[%emt 0:00:54]} Qf4+ {[%emt 0:01:36]} 28. g3 {[%emt 0:00:59]} Qf6 {[%emt 0:00:41]} 29. Kg2 {[%emt 0:01:41]} Rf8 {[%emt 0:03:00]} 30. Re5 {[%emt 0:01:56]} Re8 {[%emt 0:01:10]} 31. Qxa6 {[%emt 0:02:23]} Bb8 {[%emt 0:00:42]} 32. Qc6 {[%emt 0:03:36]} Bxe5 {[%emt 0:02:42]} 33. Qxe8+ {[%emt 0:00:08]} Kh7 {[%emt 0:00:06]} 34. Qxe6 {[%emt 0:01:41]} Bc7 {[%emt 0:01:39]} 35. Qxf6 {[%emt 0:01:51]} gxf6 {[%emt 0:00:03]} 36. Nd4 {[%emt 0:00:30]} Kg8 {[%emt 0:00:26]} 37. Nb5 {[%emt 0:00:34]} (37. a4 $142 Kf7 38. a5) 37... Bb8 {[%emt 0:00:40]} 38. a4 {[%emt 0:00:25]} Kf7 {[%emt 0:00:07]} 39. a5 {[%emt 0:00:26]} Ke6 {[%emt 0:00:14]} 40. a6 $18 {[%emt 0:00:00]} 1-0

[Event "Reykjavik Chess Congress 2018"]
[Site "Reykjavik"]
[Date "2018.01.21"]
[Round "4"]
[White "Loftsson, Hrafn"]
[Black "Fridjonsson, Julius"]
[Result "1-0"]
[ECO "D11"]
[WhiteElo "2163"]
[BlackElo "2137"]
[Annotator "NA"]
[PlyCount "71"]
[EventDate "2018.??.??"]
[EventType "swiss"]
[EventCountry "ISL"]
[SourceTitle "playchess.com"]
[Source "ChessBase"]
[SourceQuality "1"]
[TimeControl "40/5400+30:900+30"]

1. d4 {[%emt 0:00:00]} d5 {[%emt 0:00:17]} 2. c4 {[%emt 0:00:00]} c6 {[%emt 0:00:08]} 3. Nf3 {[%emt 0:00:05]} Nf6 {[%emt 0:00:09]} 4. Qb3 {[%emt 0:00:59]} g6 {[%emt 0:04:38]} 5. Nc3 {[%emt 0:01:21]} Bg7 {[%emt 0:01:37]} 6. cxd5 {[%emt 0:00:51]} cxd5 {[%emt 0:00:11]} 7. Bg5 {[%emt 0:01:20]} e6 {[%emt 0:05:30]} 8. e3 {[%emt 0:03:10]} O-O {[%emt 0:00:33]} 9. Be2 {[%emt 0:09:52] D96: Grünfeld: Russian System (5 Qb3): sidelines} (9. Bd3 Nc6 10. Ne5 h6 11. Bh4 g5 12. Bg3 Nh5 13. Nxc6 bxc6 14. O-O Nxg3 15. hxg3 e5 16. dxe5 Bxe5 17. Qc2 Qf6 {0-1 (27) Kvetny,M (2394)-Kessler,L (2433) Bregenz 2016}) 9... Qa5 {[%emt 0:27:31]} 10. O-O {[%emt 0:03:14]} Ne4 $146 {[%emt 0:01:17]} ({Find the theoretical novelty and annotate with similar games:} 10... Nc6 11. Rac1 Re8 12. Rfd1 a6 13. h3 Ne4 14. Bf4 f5 15. Na4 Qd8 16. Qb6 Qxb6 17. Nxb6 Ra7 18. Rc2 Nf6 19. Ne5 Nxe5 20. Bxe5 {1-0 (20) Bombek,P (2270)-Mosny,J (2107) Tatranska Lomnica 1999}) 11. Be7 {[%emt 0:11:01]} Nxc3 {[%emt 0:01:00]} 12. Qxc3 {[%emt 0:15:32]} (12. bxc3 $16 Re8 13. Bb4) 12... Qxc3 {[%emt 0:00:23]} 13. bxc3 {[%emt 0:00:01]} Re8 {[%emt 0:00:17]} 14. Bd6 {[%emt 0:00:36]} b6 {[%emt 0:12:38]} 15. c4 {[%emt 0:01:28]} Ba6 {[%emt 0:01:14]} 16. Rfc1 {[%emt 0:00:38]} Rc8 {[%emt 0:02:42]} (16... Nd7 $11 {keeps the balance.}) 17. cxd5 {[%emt 0:02:19]} Rd8 {[%emt 0:00:40]} 18. Bxa6 {[%emt 0:12:37]} Nxa6 {[%emt 0:00:17]} 19. Rc6 {[%emt 0:00:26]} exd5 {[%emt 0:01:15]} 20. Rac1 {[%emt 0:01:06]} Bf8 {[%emt 0:07:51]} 21. Bxf8 {[%emt 0:01:15]} Kxf8 {[%emt 0:00:02]} 22. Ne5 {[%emt 0:05:14]} Ke7 {[%emt 0:06:50]} 23. h4 {[%emt 0:05:15]} f6 {[%emt 0:05:03]} 24. Nd3 {[%emt 0:00:17]} Rd6 {[%emt 0:02:04]} 25. R6c3 {[%emt 0:08:51]} Rd7 {[%emt 0:00:56]} 26. g4 {[%emt 0:04:18]} Rad8 {[%emt 0:11:08]} 27. g5 {[%emt 0:00:15]} Rb7 {[%emt 0:00:17]} 28. a3 {[%emt 0:04:50]} Rdd7 {[%emt 0:01:24]} 29. gxf6+ {[%emt 0:01:42]} Kxf6 {[%emt 0:00:33]} 30. Nf4 {[%emt 0:02:10]} Kf5 {[%emt 0:00:59]} 31. Rc8 {[%emt 0:01:17]} Kg4 {[%emt 0:02:00]} 32. Kg2 {[%emt 0:00:21]} Kxh4 {[%emt 0:00:28] [#]} 33. Rh1+ $16 {[%emt 0:00:46]} (33. Rf8 $1 $18 Rf7 34. Rxf7 Rxf7 35. Nxd5) 33... Kg5 {[%emt 0:00:34]} 34. Rf8 {[%emt 0:00:48]} h5 {[%emt 0:01:24]} 35. Rg8 {[%emt 0:00:12]} Rd6 {[%emt 0:00:09]} 36. Rxh5+ $1 1-0

[Event "Reykjavik Chess Congress 2018"]
[Site "Reykjavik"]
[Date "2018.01.21"]
[Round "4"]
[White "Heimisson, Hilmir Freyr"]
[Black "Bergsson, Stefan"]
[Result "0-1"]
[ECO "A06"]
[WhiteElo "2136"]
[BlackElo "2093"]
[Annotator "NA"]
[PlyCount "52"]
[EventDate "2018.??.??"]
[EventType "swiss"]
[EventCountry "ISL"]
[SourceTitle "playchess.com"]
[Source "ChessBase"]
[SourceQuality "1"]
[TimeControl "40/5400+30:900+30"]

1. Nf3 {[%emt 0:00:00]} d5 {[%emt 0:13:15]} 2. g3 {[%emt 0:00:00]} Nf6 {[%emt 0:01:09]} 3. Bg2 {[%emt 0:00:09]} Bg4 {[%emt 0:00:09]} 4. O-O {[%emt 0:00:10]} Nbd7 {[%emt 0:00:11]} 5. d4 {[%emt 0:01:37]} e6 {[%emt 0:00:29]} 6. Nbd2 {[%emt 0:00:59]} Bd6 {[%emt 0:02:49]} 7. Re1 {[%emt 0:00:49]} c5 {[%emt 0:05:48]} 8. c4 {[%emt 0:09:07]} cxd4 {[%emt 0:02:53]} 9. cxd5 {[%emt 0:02:53]} exd5 {[%emt 0:09:18]} 10. Nxd4 {[%emt 0:02:20]} O-O {[%emt 0:00:39]} 11. h3 {[%emt 0:15:03]} Bh5 {[%emt 0:00:09]} 12. Nf5 {[%emt 0:00:46]} Bc5 {[%emt 0:00:48]} 13. Nb3 {[%emt 0:04:39]} Bb6 {[%emt 0:00:06]} 14. Bxd5 {[%emt 0:10:49]} (14. Bf4 $14) 14... Ne5 {[%emt 0:03:37]} (14... Bg6 $1 $11 {hält das Gleichgewicht.} 15. e4 Nxd5 16. Qxd5 Re8) 15. Bf4 {[%emt 0:07:39]} Qd7 {[%emt 0:04:54]} 16. Nxg7 {[%emt 0:23:24]} Kxg7 {[%emt 0:04:53]} 17. Bxe5 $11 {[%emt 0:00:27]} Qf5 {[%emt 0:00:30]} 18. Bxf6+ {[%emt 0:01:03]} Qxf6 {[%emt 0:00:14]} 19. Rf1 {[%emt 0:07:03]} Rfd8 {[%emt 0:00:19]} 20. Qd3 {[%emt 0:04:48]} Qe5 {[%emt 0:02:40]} 21. e4 {[%emt 0:00:19]} Rac8 {[%emt 0:10:05]} 22. Rab1 {[%emt 0:02:30]} Be2 {[%emt 0:04:48]} 23. Qxe2 {[%emt 0:01:18]} Qxg3+ {[%emt 0:00:08]} 24. Kh1 {[%emt 0:00:01]} Qxh3+ {[%emt 0:00:08]} 25. Kg1 {[%emt 0:00:06]} Kh8 {[%emt 0:01:08]} 26. Bxf7 {[%emt 0:02:03]} Rg8+ {[%emt 0:00:07]} 0-1

[Event "Reykjavik Chess Congress 2018"]
[Site "Reykjavik"]
[Date "2018.01.21"]
[Round "4"]
[White "Birkisson, Bjorn Holm"]
[Black "Ptacnikova, Lenka"]
[Result "1-0"]
[ECO "B10"]
[WhiteElo "2084"]
[BlackElo "2218"]
[Annotator "NA"]
[PlyCount "89"]
[EventDate "2018.??.??"]
[EventType "swiss"]
[EventCountry "ISL"]
[SourceTitle "playchess.com"]
[Source "ChessBase"]
[SourceQuality "1"]
[TimeControl "40/5400+30:900+30"]

{[%evp 8,70,52,32767,32767,32767,32767,32767,32767,32767,208,95,32767,32767,119,32767,100,32767,77,99,110,103,108,97,85,92,113,113,710,144,213,221,214,210,32767,221,218,225,235,244,245,283,256,261,326,32767,418,470,425,32767,474,32767,32767,32767,32767,32767,32767,32767,32767,32767,145,32767,32767,133,138]} 1. e4 {[%emt 0:00:00]} c6 {[%emt 0:01:05]} 2. Nc3 {[%emt 0:01:29]} d5 {[%emt 0:00:16]} 3. Nf3 {[%emt 0:00:23]} dxe4 {[%emt 0:01:59]} 4. Nxe4 {[%emt 0:00:19]} Bf5 {[%emt 0:02:24]} 5. Ng3 {[%emt 0:01:59]} Bg6 {[%emt 0:05:13]} 6. h4 {[%emt 0:11:09]} h6 {[%emt 0:02:57]} 7. Ne5 {[%emt 0:01:52]} Bh7 {[%emt 0:00:19]} 8. Qh5 {[%emt 0:01:47]} g6 {[%emt 0:00:29]} 9. Bc4 {[%emt 0:00:27]} e6 {[%emt 0:00:18]} 10. Qe2 {[%emt 0:01:27]} Qe7 {[%emt 0:03:23]} 11. d4 {[%emt 0:07:15] B11: Caro-Kann: Two Knights Variation} Nf6 {[%emt 0:00:28]} (11... Bg7 12. Bf4 Nf6 13. Qd2 Bg8 14. O-O-O Nbd7 15. Rhe1 Nd5 16. Ne4 Nxf4 17. Qxf4 Nf6 18. Nc5 Nd5 {1-0 (36) Atlas,V (2387)-Kuehn,P (2440) Switzerland 2003}) 12. Bd2 {[%emt 0:00:36]} Nbd7 {[%emt 0:03:51]} 13. O-O-O {[%emt 0:09:59]} Nd5 {[%emt 0:05:01]} 14. Ne4 {[%emt 0:05:38]} Bg7 $146 {[%emt 0:02:16]} ({Predecessor:} 14... O-O-O 15. Rhe1 Nxe5 16. dxe5 Qc7 17. f4 Be7 18. g3 Rhg8 19. Rh1 Rg7 20. Bb3 Nb6 21. Bc3 {½-½ (21) Kaid,A-Borgdorf,M Germany 1995}) 15. Nxd7 {[%emt 0:07:53]} Qxd7 {[%emt 0:00:41]} 16. Nc5 {[%emt 0:00:08]} Qe7 {[%emt 0:03:54]} 17. Bxd5 {[%emt 0:00:25]} exd5 $2 {[%emt 0:01:00]} (17... cxd5 $16 18. Qb5+ Kf8) 18. Qxe7+ $2 {[%emt 0:00:49]} (18. Rhe1 $18 {[%csl Ge1][%cal Re2e7]} Qxe2 19. Rxe2+ Kf8 20. Rde1) 18... Kxe7 {[%emt 0:00:03]} 19. Rhe1+ {[%emt 0:01:23]} ({But not} 19. Nxb7 $6 Rhe8 $16) 19... Kf8 {[%emt 0:04:07]} 20. Nxb7 {[%emt 0:01:48]} g5 {[%emt 0:03:22]} 21. hxg5 {[%emt 0:01:08]} hxg5 {[%emt 0:00:04]} 22. Bxg5 {[%emt 0:00:55]} Bf5 {[%emt 0:00:04]} 23. Nd6 {[%emt 0:13:10]} Be6 {[%emt 0:01:30]} 24. f4 {[%emt 0:01:31]} Bg4 {[%emt 0:00:39]} 25. Rd3 {[%emt 0:04:56]} f6 {[%emt 0:00:33]} 26. Rde3 {[%emt 0:00:04]} Bd7 {[%emt 0:05:10]} 27. Re7 {[%emt 0:00:59]} fxg5 {[%emt 0:00:51]} 28. Rxd7 {[%emt 0:00:53]} gxf4 {[%emt 0:02:20]} 29. Rde7 {[%emt 0:02:53]} Bxd4 {[%emt 0:02:40]} 30. Re8+ {[%emt 0:00:28]} Rxe8 {[%emt 0:00:32]} 31. Rxe8+ {[%emt 0:00:08]} Kg7 {[%emt 0:00:02]} 32. Rxh8 {[%emt 0:03:17]} Kxh8 {[%emt 0:00:04]} 33. c3 {[%emt 0:00:33]} Bc5 {[%emt 0:06:16]} 34. Nf7+ {[%emt 0:00:24]} Kg7 {[%emt 0:00:06]} 35. Ne5 $16 {[%emt 0:00:28]} Be3+ {[%emt 0:02:13]} 36. Kd1 {[%emt 0:01:37]} c5 {[%emt 0:00:20]} 37. Ke2 {[%emt 0:00:32]} c4 {[%emt 0:00:46]} 38. b3 {[%emt 0:01:39]} cxb3 {[%emt 0:01:13]} 39. axb3 {[%emt 0:00:14]} d4 {[%emt 0:08:06]} 40. c4 {[%emt 0:00:00]} Kf6 {[%emt 0:01:49]} 41. Nc6 {[%emt 0:05:08]} Kf5 {[%emt 0:02:28]} 42. Kd3 {[%emt 0:00:09]} Kg4 {[%emt 0:00:15]} 43. Nxd4 {[%emt 0:01:35]} Bf2 {[%emt 0:00:48]} 44. c5 {[%emt 0:01:32]} Kg3 {[%emt 0:00:47]} 45. c6 {[%emt 0:00:37]} 1-0